bitfinex-derivatives/quotes_SOLF0:USTF0_20250830
["timestamp","ask_amount","ask_price","bid_price","bid_amount"]
[1756585652863,2.0069641,200.43,200.39,7.42]
[1756585653060,7.44,200.42,200.39,7.42]
[1756585656263,2.0069641,200.43,200.39,7.42]
[1756585656461,7.44,200.42,200.39,7.42]
[1756585656660,2.0069641,200.43,200.39,7.42]
[1756585657160,7.44,200.42,200.39,7.42]
[1756585657462,2.0069641,200.43,200.39,7.42]
[1756585657663,7.77,200.42,200.39,7.42]
[1756585659365,7.77,200.42,200.39,7.81]
[1756585660159,7.77,200.42,200.38,4.19197152]
[1756585661055,7.77,200.42,200.39,7.81]
[1756585661256,7.77,200.42,200.38,4.19197152]
[1756585662166,7.77,200.42,200.39,7.81]
[1756585662465,7.77,200.42,200.38,4.19197152]
[1756585662857,7.77,200.42,200.39,7.81]
[1756585664865,7.77,200.42,200.38,4.19197152]
[1756585665667,7.77,200.42,200.39,7.81]
[1756585665862,2.0069641,200.43,200.39,7.81]
[1756585666068,7.77,200.46,200.42,7.81]
[1756585666569,7.77,200.46,200.41,2.0069641]
[1756585666769,7.77,200.46,200.42,7.81]
[1756585667164,2.0069641,200.45,200.4,4.19197152]
[1756585667371,7.77,200.44,200.41,7.81]
[1756585667565,2.0069641,200.47,200.41,7.81]
[1756585667868,7.77,200.46,200.41,7.81]
[1756585668066,2.0069641,200.47,200.4,4.19197152]
[1756585668262,7.77,200.46,200.41,7.81]
[1756585668459,2.0069641,200.47,200.4,4.19197152]
[1756585668659,9.7769641,200.47,200.41,7.81]
[1756585668964,9.7769641,200.5,200.44,7.81]
[1756585670165,7.77,200.47,200.43,7.81]
[1756585670870,7.77,200.47,200.42,6.19893562]
[1756585671065,2.0069641,200.48,200.42,6.19893562]
[1756585671265,2.0069641,200.46,200.42,12.00197152]
[1756585671472,7.77,200.45,200.42,7.81]
[1756585671674,2.0069641,200.46,200.42,7.81]
[1756585671864,7.77,200.45,200.42,7.81]
[1756585672065,2.0069641,200.46,200.42,7.81]
[1756585672267,7.77,200.45,200.42,7.81]
[1756585672465,2.0069641,200.46,200.42,7.81]
[1756585672874,7.77,200.45,200.42,7.81]
[1756585673073,2.0069641,200.46,200.42,7.81]
[1756585673373,7.77,200.45,200.42,7.81]
[1756585675078,7.77,200.45,200.4,4.19197152]
[1756585675280,2.0069641,200.46,200.41,2.0069641]
[1756585675578,9.7769641,200.46,200.41,2.0069641]
[1756585675779,9.7769641,200.46,200.42,7.81]
[1756585675974,9.7769641,200.46,200.41,2.0069641]
[1756585676368,9.7769641,200.46,200.42,7.81]
[1756585676574,7.77,200.46,200.42,7.81]
[1756585676771,7.77,200.46,200.41,2.0069641]
[1756585676976,7.77,200.46,200.42,7.81]
[1756585677981,7.77,200.47,200.41,7.81]
[1756585678181,7.77,200.47,200.41,9.8169641]
[1756585685189,2.0069641,200.48,200.41,9.8169641]
[1756585685391,7.77,200.45,200.42,7.81]
[1756585686297,2.0069641,200.46,200.4,6.19893562]
[1756585686593,7.77,200.45,200.4,14.00893562]
[1756585686792,2.0069641,200.46,200.41,7.81]
[1756585686793,9.7769641,200.46,200.41,7.81]
[1756585686994,2.0069641,200.46,200.4,6.19893562]
[1756585687190,9.3669641,200.46,200.41,7.34]
[1756585687592,9.3669641,200.46,200.4,13.53893562]
[1756585688296,9.3669641,200.46,200.4,9.3469641]
[1756585688493,2.0069641,200.46,200.4,9.3469641]
[1756585688694,7.36,200.45,200.4,9.3469641]
[1756585688989,2.0069641,200.46,200.4,7.34]
[1756585689495,7.36,200.45,200.39,13.53893562]
[1756585690296,7.36,200.45,200.39,13.54956242]
[1756585690996,7.36,200.45,200.4,7.34]
[1756585691596,7.36,200.45,200.39,6.20956242]
[1756585692697,7.36,200.45,200.41,2.0069641]
[1756585693198,7.36,200.45,200.42,7.34]
[1756585693398,7.36,200.45,200.41,6.20956242]
[1756585693697,7.36,200.45,200.42,7.34]
[1756585693891,7.36,200.45,200.41,6.20956242]
[1756585694097,7.36,200.45,200.42,7.34]
[1756585694797,7.36,200.45,200.41,6.20956242]
[1756585695299,7.36,200.45,200.42,7.34]
[1756585695501,7.36,200.45,200.41,6.20956242]
[1756585696202,7.36,200.45,200.42,7.34]
[1756585696602,7.36,200.45,200.41,4.20259832]
[1756585696803,7.36,200.46,200.42,7.34]
[1756585697004,2.0069641,200.47,200.42,7.34]
[1756585697207,7.36,200.46,200.42,7.34]
[1756585697402,2.0069641,200.47,200.42,7.34]
[1756585697607,7.36,200.46,200.42,7.34]
[1756585697800,2.0069641,200.47,200.42,7.34]
[1756585698810,7.36,200.46,200.42,7.34]
[1756585699402,2.0069641,200.47,200.42,7.34]
[1756585699605,7.36,200.46,200.42,7.34]
[1756585700314,2.0069641,200.47,200.42,7.34]
[1756585700603,7.36,200.46,200.42,7.34]
[1756585700816,2.0069641,200.47,200.42,7.34]
[1756585701713,7.36,200.46,200.41,7.34]
[1756585702110,2.0069641,200.47,200.4,6.20956242]
[1756585702308,7.36,200.46,200.41,7.34]
[1756585702703,2.0069641,200.47,200.4,6.20956242]
[1756585702911,7.36,200.46,200.41,7.34]
[1756585703512,2.0069641,200.47,200.4,6.20956242]
[1756585703916,7.36,200.46,200.41,7.34]
[1756585704212,2.0069641,200.47,200.4,6.20956242]
[1756585704915,7.36,200.46,200.41,7.34]
[1756585705612,2.0069641,200.47,200.4,6.20956242]
[1756585705817,7.36,200.46,200.41,7.34]
[1756585706810,2.0069641,200.47,200.4,6.20956242]
[1756585707213,7.36,200.46,200.41,7.34]
[1756585707618,2.0069641,200.47,200.4,6.20956242]
[1756585708816,9.3669641,200.47,200.41,7.34]
[1756585710318,9.3669641,200.47,200.41,11.54259832]
[1756585710827,2.0069641,200.47,200.41,4.20259832]
[1756585711914,9.3669641,200.47,200.42,7.34]
[1756585712318,2.0069641,200.47,200.41,4.20259832]
[1756585712718,9.3669641,200.47,200.42,7.34]
[1756585712920,2.0069641,200.47,200.41,4.20259832]
[1756585714018,0.86842598,200.52,200.41,4.20259832]
[1756585714221,2.0069641,200.5,200.44,2.0069641]
[1756585714422,7.36,200.5,200.45,7.34]
[1756585714622,2.0069641,200.49,200.45,7.34]
[1756585714919,9.3669641,200.49,200.45,7.34]
[1756585715220,2.0069641,200.51,200.45,7.34]
[1756585716122,9.3669641,200.51,200.45,7.34]
[1756585716519,9.3669641,200.51,200.45,9.3469641]
[1756585717016,9.3669641,200.51,200.46,7.34]
[1756585717227,2.0069641,200.51,200.46,7.34]
[1756585717417,9.8969641,200.51,200.46,7.64]
[1756585717618,7.89,200.5,200.47,7.64]
[1756585717814,7.89,200.5,200.46,7.64]
[1756585718117,7.89,200.5,200.45,2.0069641]
[1756585718720,2.0069641,200.51,200.46,7.64]
[1756585718920,7.89,200.52,200.47,9.6469641]
[1756585719721,2.0069641,200.53,200.47,2.0069641]
[1756585719921,7.89,200.52,200.47,9.6469641]
[1756585720124,2.0069641,200.53,200.47,2.0069641]
[1756585720325,7.89,200.52,200.46,9.6469641]
[1756585721627,7.89,200.5,200.43,11.84259832]
[1756585721822,7.89,200.5,200.44,2.0069641]
[1756585722129,7.89,200.5,200.45,7.64]
[1756585722428,7.89,200.5,200.44,9.6469641]
[1756585724928,7.89,200.5,200.45,7.64]
[1756585725529,7.89,200.49,200.46,7.64]
[1756585725726,7.89,200.49,200.44,2.0069641]
[1756585726126,7.89,200.49,200.45,7.64]
[1756585726528,7.89,200.49,200.44,2.0069641]
[1756585726732,7.89,200.49,200.45,7.64]
[1756585726926,2.0069641,200.51,200.45,7.64]
[1756585731526,7.89,200.49,200.46,7.64]
[1756585731732,7.89,200.49,200.44,2.0069641]
[1756585731931,7.89,200.53,200.48,2.0069641]
[1756585732135,7.89,200.55,200.48,9.6469641]
[1756585732326,7.89,200.52,200.49,7.64]
[1756585732723,2.0069641,200.53,200.49,7.64]
[1756585733135,7.89,200.52,200.49,7.64]
[1756585733336,2.0069641,200.53,200.49,7.64]
[1756585733526,7.89,200.52,200.49,7.64]
[1756585737338,2.0069641,200.53,200.49,7.64]
[1756585737734,7.89,200.52,200.49,7.64]
[1756585738832,2.0069641,200.53,200.49,7.64]
[1756585739534,7.89,200.52,200.46,2.0069641]
[1756585740130,7.89,200.52,200.47,7.64]
[1756585740336,9.8969641,200.53,200.47,7.64]
[1756585751338,7.89,200.53,200.47,7.64]
[1756585751542,2.0069641,200.52,200.46,2.0069641]
[1756585751740,2.0069641,200.52,200.47,7.38]
[1756585752440,2.0069641,200.52,200.46,2.0069641]
[1756585752640,2.0069641,200.52,200.47,7.38]
[1756585752946,2.0069641,200.52,200.46,2.0069641]
[1756585753445,2.0069641,200.52,200.47,7.38]
[1756585753642,9.8869641,200.52,200.47,7.38]
[1756585754051,9.8869641,200.52,200.46,2.0069641]
[1756585754237,9.8869641,200.52,200.47,7.38]
[1756585754546,9.8869641,200.52,200.46,6.20956242]
[1756585754547,9.8869641,200.52,200.46,2.0069641]
[1756585754747,9.8869641,200.52,200.47,7.38]
[1756585754942,2.0069641,200.52,200.46,2.0069641]
[1756585755444,2.0069641,200.52,200.47,7.38]
[1756585756043,2.0069641,200.52,200.46,6.20956242]
[1756585756649,2.0069641,200.52,200.47,7.38]
[1756585756847,2.0069641,200.52,200.46,6.20956242]
[1756585757050,2.0069641,200.52,200.47,7.38]
[1756585757648,2.0069641,200.52,200.46,6.20956242]
[1756585758149,2.0069641,200.52,200.47,7.38]
[1756585758346,2.0069641,200.52,200.46,6.20956242]
[1756585758850,2.0069641,200.52,200.47,7.38]
[1756585759249,2.0069641,200.52,200.46,6.20956242]
[1756585760149,2.0069641,200.52,200.47,7.38]
[1756585760748,2.0069641,200.52,200.46,6.20956242]
[1756585761354,2.0069641,200.52,200.47,7.38]
[1756585761746,2.0069641,200.52,200.46,6.20956242]
[1756585762053,2.0069641,200.52,200.47,7.38]
[1756585762252,9.8869641,200.52,200.48,7.38]
[1756585762443,2.0069641,200.52,200.47,2.0069641]
[1756585762640,7.88,200.51,200.47,2.0069641]
[1756585762844,7.88,200.51,200.48,7.38]
[1756585763056,7.88,200.51,200.47,2.0069641]
[1756585763246,7.88,200.51,200.48,7.38]
[1756585763745,7.88,200.56,200.48,7.38]
[1756585763956,2.0069641,200.55,200.5,7.38]
[1756585764149,7.88,200.54,200.5,7.38]
[1756585764549,2.0069641,200.55,200.5,7.38]
[1756585764944,7.88,200.54,200.5,7.38]
[1756585765150,2.0069641,200.55,200.5,7.38]
[1756585765351,7.88,200.54,200.5,7.38]
[1756585765751,2.0069641,200.55,200.5,7.38]
[1756585766746,7.88,200.54,200.5,7.38]
[1756585766954,2.0069641,200.55,200.5,7.38]
[1756585767247,7.88,200.54,200.5,7.38]
[1756585767654,2.0069641,200.55,200.5,7.38]
[1756585767854,7.88,200.54,200.49,2.0069641]
[1756585768055,9.8869641,200.55,200.5,7.38]
[1756585768256,2.0069641,200.55,200.49,2.0069641]
[1756585769250,2.0069641,200.55,200.47,4.20259832]
[1756585769456,7.88,200.54,200.49,7.38]
[1756585769955,2.0069641,200.55,200.48,2.0069641]
[1756585770557,7.88,200.54,200.49,7.38]
[1756585770756,2.0069641,200.55,200.48,2.0069641]
[1756585770956,9.8869641,200.55,200.49,7.38]
[1756585785067,7.88,200.55,200.49,7.38]
[1756585785274,9.8869641,200.54,200.48,6.20956242]
[1756585785571,2.0069641,200.54,200.49,7.91]
[1756585785771,9.8869641,200.54,200.49,7.91]
[1756585785973,2.0069641,200.54,200.49,7.91]
[1756585786168,2.0069641,200.54,200.48,6.20956242]
[1756585786368,2.0069641,200.54,200.49,7.91]
[1756585786570,2.0069641,200.54,200.48,6.20956242]
[1756585786762,2.0069641,200.54,200.49,7.91]
[1756585787167,9.8869641,200.54,200.49,7.91]
[1756585787363,2.0069641,200.54,200.48,6.20956242]
[1756585787668,9.8869641,200.54,200.49,7.91]
[1756585787970,2.0069641,200.54,200.48,6.20956242]
[1756585788173,9.8869641,200.54,200.49,7.91]
[1756585789467,2.0069641,200.54,200.48,6.20956242]
[1756585789865,9.8869641,200.54,200.49,7.91]
[1756585790073,2.0069641,200.54,200.48,6.20956242]
[1756585790263,9.8869641,200.54,200.49,7.91]
[1756585790462,2.0069641,200.54,200.48,6.20956242]
[1756585790874,9.8869641,200.54,200.49,7.91]
[1756585791069,2.0069641,200.54,200.48,6.20956242]
[1756585791464,9.8869641,200.54,200.49,7.91]
[1756585792070,2.0069641,200.54,200.48,6.20956242]
[1756585792269,9.8869641,200.54,200.49,7.91]
[1756585793173,2.0069641,200.54,200.48,6.20956242]
[1756585793470,9.8869641,200.54,200.49,7.91]
[1756585793672,2.0069641,200.54,200.48,6.20956242]
[1756585793872,2.0069641,200.54,200.49,7.91]
[1756585794065,2.0069641,200.54,200.48,6.20956242]
[1756585794266,9.8869641,200.54,200.49,7.91]
[1756585794469,2.0069641,200.54,200.48,6.20956242]
[1756585795269,9.8869641,200.54,200.49,7.91]
[1756585795571,2.0069641,200.54,200.49,7.91]
[1756585795872,2.0069641,200.54,200.48,6.20956242]
[1756585796268,2.0069641,200.54,200.49,7.91]
[1756585797373,9.8869641,200.54,200.49,7.91]
[1756585797570,2.0069641,200.54,200.49,7.91]
[1756585797773,9.8869641,200.54,200.49,7.91]
[1756585798167,2.0069641,200.54,200.48,6.20956242]
[1756585798875,9.8869641,200.54,200.49,7.91]
[1756585799066,2.0069641,200.54,200.48,6.20956242]
[1756585799765,2.0069641,200.54,200.48,4.20259832]
[1756585799972,7.88,200.51,200.48,7.91]
[1756585800375,9.8869641,200.53,200.48,7.91]
[1756585800774,7.88,200.52,200.49,7.91]
[1756585800971,7.88,200.52,200.48,4.20259832]
[1756585801567,7.88,200.52,200.49,7.91]
[1756585802171,2.0069641,200.51,200.46,4.20259832]
[1756585802376,7.88,200.5,200.46,4.20259832]
[1756585802576,7.88,200.5,200.47,7.91]
[1756585802780,2.0069641,200.49,200.46,4.20259832]
[1756585802973,5.56655083,200.54,200.43,4.20259832]
[1756585803172,9.8869641,200.48,200.44,4.20259832]
[1756585803379,9.8869641,200.52,200.47,7.91]
[1756585803572,9.8869641,200.52,200.46,6.20956242]
[1756585803777,2.0069641,200.52,200.46,6.20956242]
[1756585803982,2.0069641,200.52,200.47,7.91]
[1756585804679,2.0069641,200.52,200.46,6.20956242]
[1756585804871,7.88,200.51,200.47,7.91]
[1756585805379,7.88,200.51,200.46,6.20956242]
[1756585805682,7.88,200.51,200.47,7.91]
[1756585806478,7.88,200.51,200.46,6.20956242]
[1756585807080,7.88,200.51,200.47,7.91]
[1756585807279,7.88,200.51,200.47,7.44]
[1756585807478,7.88,200.51,200.46,6.20956242]
[1756585807878,7.88,200.51,200.47,7.44]
[1756585808277,7.88,200.51,200.46,6.20956242]
[1756585808478,7.88,200.51,200.47,7.44]
[1756585808982,7.88,200.51,200.46,6.20956242]
[1756585809176,7.88,200.51,200.47,7.44]
[1756585809783,7.4,200.47,200.45,4.20259832]
[1756585809986,7.4,200.47,200.45,7.44]
[1756585810883,7.4,200.47,200.43,4.20259832]
[1756585811084,7.4,200.47,200.44,7.44]
[1756585811483,7.4,200.51,200.45,11.64259832]
[1756585811783,2.0069641,200.52,200.45,4.20259832]
[1756585812475,2.0069641,200.52,200.44,6.20956242]
[1756585812681,7.4,200.51,200.45,7.44]
[1756585813886,2.0069641,200.5,200.45,7.44]
[1756585814086,2.0069641,200.5,200.44,6.20956242]
[1756585814380,2.0069641,200.5,200.45,7.44]
[1756585814579,2.0069641,200.5,200.44,6.20956242]
[1756585814785,2.0069641,200.5,200.45,7.44]
[1756585815280,2.0069641,200.5,200.44,6.20956242]
[1756585815887,7.4,200.49,200.44,13.64956242]
[1756585816082,2.0069641,200.48,200.45,7.44]
[1756585816289,9.4069641,200.48,200.45,7.44]
[1756585816683,7.4,200.47,200.45,7.44]
[1756585816884,2.0069641,200.46,200.42,11.64259832]
[1756585817079,9.4069641,200.44,200.42,7.44]
[1756585817281,2.0069641,200.44,200.4,4.20259832]
[1756585817484,7.4,200.53,200.41,7.44]
[1756585817685,2.0069641,200.47,200.42,2.0069641]
[1756585818582,2.0069641,200.47,200.43,7.44]
[1756585818883,9.4069641,200.47,200.43,7.44]
[1756585819485,2.0069641,200.47,200.43,7.44]
[1756585819684,7.4,200.46,200.43,7.44]
[1756585819985,7.4,200.46,200.42,2.0069641]
[1756585820177,7.4,200.46,200.42,7.44]
[1756585820782,7.4,200.46,200.43,7.44]
[1756585820979,9.4069641,200.47,200.42,7.44]
[1756585821187,7.4,200.46,200.42,7.44]
[1756585821489,9.4069641,200.45,200.39,11.63831708]
[1756585822187,9.4069641,200.45,200.39,4.19831708]
[1756585822385,9.4069641,200.45,200.4,2.0069641]
[1756585822787,9.4069641,200.45,200.41,7.44]
[1756585822981,9.4069641,200.45,200.4,2.0069641]
[1756585823485,9.4069641,200.45,200.41,7.44]
[1756585823887,9.4069641,200.45,200.4,2.0069641]
[1756585824082,9.4069641,200.45,200.41,7.44]
[1756585824289,7.4,200.44,200.4,2.0069641]
[1756585824788,7.4,200.44,200.41,7.44]
[1756585824984,7.4,200.44,200.4,2.0069641]
[1756585825689,7.4,200.44,200.41,7.44]
[1756585825885,7.4,200.44,200.4,2.0069641]
[1756585826084,8.34982625,200.58,200.4,2.0069641]
[1756585826085,2.0069641,200.49,200.42,6.20528118]
[1756585826286,9.4069641,200.49,200.43,11.63831708]
[1756585826991,7.4,200.49,200.43,4.19831708]
[1756585827287,2.0069641,200.5,200.43,4.19831708]
[1756585827489,9.4069641,200.5,200.44,7.44]
[1756585828089,7.4,200.5,200.44,7.44]
[1756585828289,2.0069641,200.49,200.44,7.44]
[1756585828490,2.0069641,200.49,200.43,4.19831708]
[1756585828994,2.0069641,200.49,200.44,7.44]
[1756585829290,9.4069641,200.49,200.44,7.44]
[1756585829688,9.4069641,200.49,200.43,11.63831708]
[1756585829889,2.0069641,200.44,200.39,11.63831708]
[1756585830092,9.4069641,200.44,200.4,7.44]
[1756585830392,9.4069641,200.44,200.39,4.19831708]
[1756585830587,9.4069641,200.44,200.4,7.44]
[1756585830792,9.4069641,200.44,200.39,4.19831708]
[1756585831189,7.4,200.44,200.39,4.19831708]
[1756585831489,7.4,200.44,200.41,7.44]
[1756585831887,7.4,200.44,200.4,6.20528118]
[1756585832091,7.4,200.44,200.41,7.44]
[1756585832595,7.4,200.44,200.4,6.20528118]
[1756585833394,7.4,200.44,200.41,7.44]
[1756585833996,7.4,200.44,200.4,6.20528118]
[1756585834198,7.4,200.46,200.41,7.44]
[1756585834691,2.0069641,200.47,200.4,6.20528118]
[1756585835195,7.4,200.46,200.41,7.44]
[1756585835385,7.4,200.44,200.41,7.44]
[1756585836195,7.4,200.44,200.39,7.44]
[1756585836595,2.0069641,200.45,200.38,6.20528118]
[1756585836999,7.4,200.44,200.38,13.64528118]
[1756585838300,7.4,200.44,200.38,9.4469641]
[1756585838501,2.0069641,200.43,200.37,4.19831708]
[1756585838706,2.0069641,200.43,200.37,6.20528118]
[1756585839093,10.0769641,200.43,200.38,7.77]
[1756585839302,2.0069641,200.43,200.38,7.77]
[1756585839599,2.0069641,200.43,200.37,6.20528118]
[1756585839800,2.0069641,200.43,200.38,7.77]
[1756585841403,2.0069641,200.43,200.37,6.20528118]
[1756585841602,2.0069641,200.43,200.38,7.77]
[1756585841804,2.0069641,200.43,200.38,4.19831708]
[1756585842606,2.0069641,200.43,200.39,7.77]
[1756585842805,10.0769641,200.45,200.39,9.7769641]
[1756585845402,2.0069641,200.45,200.39,2.0069641]
[1756585845709,8.07,200.44,200.41,7.77]
[1756585845909,8.07,200.44,200.4,7.77]
[1756585846113,8.07,200.44,200.39,2.0069641]
[1756585846311,8.07,200.44,200.4,7.77]
[1756585846504,8.07,200.44,200.39,2.0069641]
[1756585846708,8.07,200.44,200.4,7.77]
[1756585847010,8.07,200.44,200.39,2.0069641]
[1756585847408,8.07,200.44,200.4,7.77]
[1756585847713,8.07,200.44,200.39,2.0069641]
[1756585848011,2.0069641,200.45,200.39,2.0069641]
[1756585848912,10.0769641,200.45,200.4,7.77]
[1756585849112,10.0769641,200.45,200.39,9.7769641]
[1756585852315,10.0769641,200.45,200.39,13.97528118]
[1756585853211,8.07,200.42,200.39,11.96831708]
[1756585853411,8.07,200.42,200.38,6.20528118]
[1756585853612,8.07,200.42,200.39,7.77]
[1756585854018,8.07,200.42,200.38,6.20528118]
[1756585854414,8.07,200.42,200.39,7.77]
[1756585855115,8.07,200.42,200.38,6.20528118]
[1756585855307,8.07,200.42,200.39,7.77]
[1756585855717,8.07,200.42,200.38,6.20528118]
[1756585856117,8.07,200.42,200.39,7.77]
[1756585856315,8.07,200.42,200.38,6.20528118]
[1756585857013,8.07,200.42,200.39,7.77]
[1756585858319,8.07,200.42,200.39,11.96831708]
[1756585858614,8.07,200.42,200.4,7.77]
[1756585859118,8.07,200.42,200.39,4.19831708]
[1756585859320,2.0069641,200.43,200.39,11.96831708]
[1756585859818,8.07,200.42,200.39,11.96831708]
[1756585860318,2.0069641,200.43,200.39,11.96831708]
[1756585860520,8.07,200.42,200.39,11.96831708]
[1756585861218,8.07,200.4,200.35,4.19831708]
[1756585861417,8.07,200.37,200.34,11.96831708]
[1756585861624,2.0069641,200.38,200.34,7.77]
[1756585861826,8.07,200.37,200.34,7.77]
[1756585862119,8.07,200.35,200.31,11.96831708]
[1756585862322,10.0769641,200.35,200.3,6.20528118]
[1756585862520,10.0769641,200.35,200.31,7.77]
[1756585862722,10.0769641,200.35,200.3,6.20528118]
[1756585863621,10.0769641,200.39,200.33,7.77]
[1756585865424,2.0069641,200.38,200.33,7.77]
[1756585865620,8.07,200.35,200.33,7.77]
[1756585870633,9.8469641,200.38,200.32,2.0069641]
[1756585871033,2.0069641,200.38,200.33,7.39]
[1756585871332,2.0069641,200.38,200.32,2.0069641]
[1756585871527,2.0069641,200.38,200.33,7.39]
[1756585871928,2.0069641,200.38,200.32,2.0069641]
[1756585872125,2.0069641,200.38,200.33,7.39]
[1756585872330,2.0069641,200.38,200.32,2.0069641]
[1756585872532,2.0069641,200.38,200.33,7.39]
[1756585872732,2.0069641,200.38,200.32,2.0069641]
[1756585872933,2.0069641,200.38,200.33,7.39]
[1756585873134,2.0069641,200.38,200.32,2.0069641]
[1756585873428,2.0069641,200.38,200.33,7.39]
[1756585873830,2.0069641,200.38,200.32,2.0069641]
[1756585874034,2.0069641,200.38,200.33,7.39]
[1756585874531,2.0069641,200.38,200.32,2.0069641]
[1756585874836,2.0069641,200.38,200.33,7.39]
[1756585875038,2.0069641,200.38,200.32,2.0069641]
[1756585875638,2.0069641,200.38,200.33,7.39]
[1756585875936,2.0069641,200.38,200.32,2.0069641]
[1756585877237,2.0069641,200.38,200.33,7.39]
[1756585877737,2.0069641,200.38,200.32,2.0069641]
[1756585877938,2.0069641,200.38,200.33,7.39]
[1756585878342,2.0069641,200.38,200.32,2.0069641]
[1756585878742,2.0069641,200.38,200.33,7.39]
[1756585879340,2.0069641,200.38,200.32,2.0069641]
[1756585879943,2.0069641,200.38,200.33,7.39]
[1756585880146,2.0069641,200.38,200.32,2.0069641]
[1756585880638,2.0069641,200.38,200.33,7.39]
[1756585881143,2.0069641,200.38,200.32,2.0069641]
[1756585881341,2.0069641,200.38,200.32,6.20528118]
[1756585881534,2.0069641,200.38,200.33,7.39]
[1756585881737,2.0069641,200.38,200.34,2.0069641]
[1756585882144,7.84,200.37,200.35,7.39]
[1756585882647,2.0069641,200.38,200.34,2.0069641]
[1756585882843,9.8469641,200.38,200.35,7.39]
[1756585883843,5.56655083,200.5,200.34,2.0069641]
[1756585884147,2.0069641,200.45,200.39,7.39]
[1756585884544,7.84,200.44,200.39,7.39]
[1756585884849,2.0069641,200.45,200.39,7.39]
[1756585885347,7.84,200.44,200.39,7.39]
[1756585885546,7.84,200.43,200.39,7.39]
[1756585885748,7.84,200.44,200.39,7.39]
[1756585886046,7.84,200.44,200.38,9.3969641]
[1756585886243,2.0069641,200.47,200.4,2.0069641]
[1756585886443,7.84,200.46,200.4,2.0069641]
[1756585890645,7.84,200.5,200.44,9.3969641]
[1756585895953,7.84,200.5,200.46,2.0069641]
[1756585896358,7.84,200.5,200.47,7.39]
[1756585897153,7.84,200.5,200.46,9.3969641]
[1756585897361,8.06,200.52,200.46,7.39]
[1756585901762,8.06,200.55,200.46,7.39]
[1756585909762,3.13505899,200.53,200.46,7.39]
[1756585910065,8.06,200.52,200.46,7.39]
[1756585911569,8.06,200.52,200.43,10.95505899]
[1756585911870,3.13505899,200.53,200.43,10.95505899]
[1756585912568,8.06,200.52,200.43,10.95505899]
[1756585912967,3.13505899,200.53,200.43,10.95505899]
[1756585913567,8.06,200.52,200.43,10.95505899]
[1756585914367,8.06,200.52,200.44,7.82]
[1756585921587,8.06,200.5,200.44,7.82]
[1756585923389,8.06,200.47,200.44,7.82]
[1756585924181,8.06,200.47,200.42,2.00693485]
[1756585924489,8.06,200.47,200.43,7.82]
[1756585924689,8.06,200.47,200.42,2.00693485]
[1756585925488,8.06,200.47,200.43,7.82]
[1756585925684,8.06,200.47,200.42,2.00693485]
[1756585925884,8.06,200.47,200.43,7.82]
[1756585926086,8.06,200.47,200.42,2.00693485]
[1756585926287,2.00693485,200.48,200.43,7.82]
[1756585926482,8.06,200.47,200.39,12.01055666]
[1756585926788,8.06,200.45,200.39,9.82693485]
[1756585927184,8.03,200.43,200.39,7.82]
[1756585927389,8.03,200.45,200.39,7.82]
[1756585928790,8.03,200.45,200.36,12.13055666]
[1756585928985,8.03,200.45,200.36,7.94]
[1756585929191,3.13717573,200.5,200.36,7.94]
[1756585929192,8.03,200.42,200.36,7.94]
[1756585930195,8.03,200.42,200.33,7.94]
[1756585931895,11.16717573,200.42,200.33,7.94]
[1756585932495,3.13717573,200.39,200.33,7.94]
[1756585932892,11.16717573,200.39,200.31,7.94]
[1756585933590,8.03,200.39,200.31,7.94]